[Event "Grand Prix Romania 1st Stage 2024"]
[Site "Bucuresti"]
[Date "2024.03.24"]
[Round "5.5"]
[White "Shuvalova, Polina"]
[Black "Sargsyan, Shant"]
[Result "0-1"]
[ECO "C48"]
[WhiteElo "2455"]
[BlackElo "2637"]
[Annotator "TA"]
[PlyCount "74"]
[EventDate "2024.03.20"]
[EventType "swiss"]
[EventCountry "ROU"]
[SourceTitle "playchess.com"]
[Source "ChessBase"]
[SourceQuality "1"]
[TimeControl "900+5"]

{[%evp 9,74,0,7,0,0,2,7,-6,0,-32,0,-37,-49,-66,-79,-66,-77,-70,-66,-90,-80,-83,-81,-206,-216,-236,-175,-183,-171,-250,-237,-245,-235,-266,-247,-281,-300,-302,-307,-283,-219,-306,-311,-396,-396,-403,-389,-489,-478,-469,-423,-550,-504,-547,-418,-630,-590,-597,-603,-818,-787,-872,-866,-963,-894,-982,-956]} 1. e4 {[%emt 0:00:02]} e5 {[%emt 0:00:04]} 2. Nf3 {[%emt 0:00:02]} Nc6 {[%emt 0:00:02]} 3. Nc3 {[%emt 0:00:01]} Nf6 {[%emt 0:00:07]} 4. Bb5 {[%emt 0:00:02]} Nd4 {[%emt 0:00:04]} 5. O-O {[%emt 0:00:02]} c6 {[%emt 0:00:05]} 6. Bd3 {[%emt 0:00:02]} Nxf3+ {[%emt 0:00:05]} 7. Qxf3 {[%emt 0:00:02]} g6 {[%emt 0:00:02]} 8. Be2 {[%emt 0:00:08][%cal Od2d4] The position is equal.} d6 {[%emt 0:00:07]} 9. Qg3 {[%emt 0:00:15]} h5 {[%emt 0:00:55]} 10. h3 {[%emt 0:00:42]} h4 {[%emt 0:00:48]} 11. Qh2 {[%emt 0:03:34]} Bh6 {[%emt 0:00:31]} 12. d3 {[%emt 0:02:11]} Bxc1 {[%emt 0:00:08]} 13. Raxc1 {[%emt 0:00:02]} Qb6 {[%emt 0:00:52]} 14. b3 {[%emt 0:00:59]} Qa5 {[%emt 0:00:48]} 15. Nb1 {[%emt 0:08:16]} g5 $36 {[%emt 0:11:42][%cal Oc8e6][%mdl 2048] Black is on the roll. Black is more active.} 16. c3 {[%emt 0:00:00]} (16. d4 $17) 16... Qxa2 $19 {[%emt 0:00:00]} 17. Bf3 {[%emt 0:00:00]} Qxb3 {[%emt 0:00:00]} 18. Nd2 {[%emt 0:00:00]} Qe6 {[%emt 0:00:00]} 19. d4 {[%emt 0:00:00]} (19. Nc4 $142) 19... a5 {[%emt 0:00:00]} 20. Be2 {[%emt 0:00:00]} Nh5 {[%emt 0:00:00]} 21. Bg4 {[%emt 0:00:00]} Qe7 {[%emt 0:00:00]} 22. dxe5 {[%emt 0:00:00]} dxe5 {[%emt 0:00:00] And now ...Bxg4 would win.} ({Don't take} 22... Qxe5 23. Bxc8 Rxc8 24. Nc4 Qxh2+ (24... Qxe4 $2 {loses.} 25. Nxd6+ Kf8 26. Nxe4 $18) 25. Kxh2 $17) 23. Bxh5 {[%emt 0:00:00]} Rxh5 {[%emt 0:00:00]} 24. Nc4 {[%emt 0:00:00]} f6 {[%emt 0:00:00] White must now prevent ...Be6.} 25. Rfd1 {[%emt 0:00:00]} Be6 {[%emt 0:00:00]} 26. Ne3 {[%emt 0:00:00]} a4 {[%emt 0:00:00]} 27. Kh1 {[%emt 0:00:00]} Kf7 {[%emt 0:00:00]} 28. c4 {[%emt 0:00:00]} Rhh8 {[%emt 0:00:00]} 29. Qg1 {[%emt 0:00:00]} Rhd8 {[%emt 0:00:00]} 30. Qe1 {[%emt 0:00:00]} a3 {[%emt 0:00:00]} 31. Ra1 {[%emt 0:00:00]} Rd4 {[%emt 0:00:00]} 32. f3 {[%emt 0:00:17]} (32. Rdb1 $142) 32... Qc5 {[%emt 0:00:00] [#] Strongly threatening ...Rxd1. Black is clearly winning.} ({Weaker is} 32... Bxc4 33. Rxd4 exd4 34. Nxc4 $11) 33. Rdc1 {[%emt 0:00:04]} Rd3 {[%emt 0:00:00]} 34. Nf5 {[%emt 0:00:12]} Rad8 {[%emt 0:00:00][%cal Oe6f5]} 35. Rcb1 {[%emt 0:00:12]} R8d7 {[%emt 0:00:00]} 36. Rc1 {[%emt 0:00:25]} Kg6 {[%emt 0:00:00]} 37. Rc3 {[%emt 0:00:05]} Qb4 {[%emt 0:00:10] Black took control after the opening.   Weighted Error Value: White=0.54/Black=0.16 (very precise) .  Mistake:       	White=3     	---        Inaccurate:     	White=5     	---        OK:         	White=6     	Black=14     Best:        	---       	Black=2} 0-1

[Event "Grand Prix Romania 1st Stage 2024"]
[Site "Bucuresti"]
[Date "2024.03.24"]
[Round "5.6"]
[White "Chigaev, Maksim"]
[Black "Rozen, Eytan"]
[Result "1/2-1/2"]
[ECO "B12"]
[WhiteElo "2617"]
[BlackElo "2487"]
[Annotator "TA"]
[PlyCount "89"]
[EventDate "2024.03.20"]
[EventType "swiss"]
[EventCountry "ROU"]
[SourceTitle "playchess.com"]
[Source "ChessBase"]
[SourceQuality "1"]
[TimeControl "900+5"]

{[%evp 9,89,16,8,4,11,21,0,0,23,19,12,-12,-15,-37,-28,-43,-50,-33,-30,-44,-43,-32,-46,-41,-34,-49,-32,-31,-38,-53,-44,-43,-43,-60,-48,-34,-14,-21,-18,-47,-29,-21,-27,-46,0,-26,-29,-65,-36,-73,-41,-120,-80,-85,0,0,0,0,0,0,0,0,8,0,0,0,0,0,0,0,0,0,0,-6,-5,-6,-6,-6,-5,-6,-5,-5]} 1. e4 {[%emt 0:00:04]} c6 {[%emt 0:00:01]} 2. d4 {[%emt 0:00:02]} d5 {[%emt 0:00:03]} 3. e5 {[%emt 0:00:03]} c5 {[%emt 0:00:04]} 4. Nf3 {[%emt 0:00:08]} Nc6 {[%emt 0:00:13]} 5. c4 {[%emt 0:01:40]} cxd4 {[%emt 0:00:03]} 6. Nxd4 {[%emt 0:00:03]} e6 {[%emt 0:00:02]} 7. Nc3 {[%emt 0:00:16]} Bc5 {[%emt 0:00:19]} 8. Nxc6 {[%emt 0:02:32]} bxc6 {[%emt 0:00:01]} 9. cxd5 {[%emt 0:00:10]} cxd5 {[%emt 0:00:04]} 10. Bd3 {[%emt 0:00:19][%cal Ob2b4]} Ne7 {[%emt 0:00:56]} 11. Na4 {[%emt 0:01:38]} Bb4+ {[%emt 0:00:06]} 12. Bd2 {[%emt 0:00:01]} Qa5 {[%emt 0:01:15] [#] Hoping for ...Bxd2+.} 13. Nc3 {[%emt 0:00:09]} Ba6 {[%emt 0:01:31]} 14. Bxa6 {[%emt 0:01:35]} Qxa6 {[%emt 0:00:01]} 15. Qa4+ {[%emt 0:00:03]} Qxa4 {[%emt 0:00:03]} 16. Nxa4 {[%emt 0:00:01]} Rb8 {[%emt 0:00:22]} 17. g3 {[%emt 0:00:43]} Nc6 {[%emt 0:01:14]} 18. f4 {[%emt 0:00:08]} Ke7 {[%emt 0:00:01]} 19. Ke2 {[%emt 0:02:36]} Nd4+ {[%emt 0:01:14]} 20. Kd3 {[%emt 0:00:02]} Bxd2 {[%emt 0:00:01]} 21. Kxd2 {[%emt 0:00:02]} Rhc8 {[%emt 0:00:10]} 22. Rac1 {[%emt 0:00:11] Against Rc2+} h5 {[%emt 0:00:14]} 23. Kd3 {[%emt 0:00:37]} Nc6 {[%emt 0:00:01]} 24. a3 {[%emt 0:01:16] Wards off Nb4+} f6 {[%emt 0:01:07]} 25. exf6+ {[%emt 0:00:11]} gxf6 {[%emt 0:00:02]} 26. Rc5 {[%emt 0:00:49]} Kd6 {[%emt 0:00:05]} (26... Rb3+ $15 27. Kd2 Kd6) 27. Rhc1 {[%emt 0:00:09]} a5 {[%emt 0:00:43]} 28. R5c2 {[%emt 0:01:05]} e5 {[%emt 0:00:31]} 29. fxe5+ {[%emt 0:00:28]} fxe5 {[%emt 0:00:01]} 30. Nc5 {[%emt 0:00:04]} (30. Ke3 $15) 30... Rb5 {[%emt 0:00:58]} ({Don't play} 30... Nd4 $6 31. Nb7+ Rxb7 32. Rxc8 $11) 31. Ke3 {[%emt 0:00:09] [#]} Rcb8 {[%emt 0:01:16]} (31... Nd4 32. Ne4+ Kd7 33. Nf6+ (33. Rxc8 Nf5+ 34. Kd2 dxe4 $18) 33... Ke6 34. Rxc8 $18) ({Black should try} 31... e4 $1 $17 32. Kd2 Rc7) 32. Ne4+ $1 $11 {[%emt 0:00:15] The position is equal.} dxe4 {[%emt 0:00:02]} 33. Rxc6+ {[%emt 0:00:02][%mdl 4096] Endgame. KRR-KRR} Kd5 {[%emt 0:00:01]} 34. b4 {[%emt 0:00:04]} axb4 {[%emt 0:00:18]} 35. axb4 {[%emt 0:00:01]} R8b7 {[%emt 0:00:13]} 36. R1c3 {[%emt 0:00:18]} Rb8 {[%emt 0:00:19]} 37. Rc7 {[%emt 0:00:06]} Rxb4 {[%emt 0:00:06]} 38. R3c5+ {[%emt 0:00:04]} Ke6 {[%emt 0:00:08]} 39. R5c6+ {[%emt 0:00:03]} Kd5 {[%emt 0:00:10]} 40. Rc5+ {[%emt 0:00:03]} Ke6 {[%emt 0:00:13]} 41. h3 {[%emt 0:00:12]} Rb3+ {[%emt 0:00:24]} 42. Kxe4 {[%emt 0:00:02][%cal Rc5c6]} R8b4+ {[%emt 0:00:02]} 43. Rc4 {[%emt 0:00:01]} Rxc4+ {[%emt 0:00:03]} 44. Rxc4 {[%emt 0:00:01]} Rxg3 {[%emt 0:00:12]} 45. Rc6+ {[%emt 0:00:02] Weighted Error Value: White=0.12 (very precise) /Black=0.07 (flawless) .  Mistake:       	White=1     	Black=2      Inaccurate:     	White=4     	Black=2      OK:         	White=15    	Black=15     Best:        	White=1     	Black=4      Strong:       	White=1     	---} 1/2-1/2

[Event "Grand Prix Romania 1st Stage 2024"]
[Site "Bucuresti"]
[Date "2024.03.24"]
[Round "5.7"]
[White "Manolache, Marius"]
[Black "Bologan, Victor"]
[Result "0-1"]
[ECO "B08"]
[WhiteElo "2387"]
[BlackElo "2594"]
[Annotator "TA"]
[PlyCount "66"]
[EventDate "2024.03.20"]
[EventType "swiss"]
[EventCountry "ROU"]
[SourceTitle "playchess.com"]
[Source "ChessBase"]
[SourceQuality "1"]
[TimeControl "900+5"]

{[%evp 15,66,45,41,38,29,-29,-15,-47,-60,-52,-19,-63,-39,-65,-69,-60,-49,-83,-54,-79,-82,-88,-70,-343,-332,-335,-342,-585,-579,-599,-582,-563,-591,-657,-657,-700,-664,-1103,-1095,-1087,-1085,-1122,-1151,-1495,-1387,-1401,-1270,-1213,-1107,-1575,-1194,-1232,-1194]} 1. d4 {[%emt 0:00:04]} d6 {[%emt 0:00:01]} 2. Nf3 {[%emt 0:00:03]} Nf6 {[%emt 0:00:11]} 3. Nc3 {[%emt 0:00:06]} Nbd7 {[%emt 0:00:02]} 4. e4 {[%emt 0:00:05]} e5 {[%emt 0:00:01]} 5. Be2 {[%emt 0:00:18]} g6 {[%emt 0:00:04]} 6. O-O {[%emt 0:00:52]} Bg7 {[%emt 0:00:01]} 7. dxe5 {[%emt 0:00:14]} dxe5 {[%emt 0:00:03]} 8. b3 {[%emt 0:00:16]} O-O {[%emt 0:00:04]} 9. Ba3 {[%emt 0:01:03] Pariert Nc5.} Re8 {[%emt 0:00:04]} 10. Nd2 {[%emt 0:02:13]} (10. Qd3 $142) 10... a6 {[%emt 0:01:36]} 11. Nc4 {[%emt 0:03:09] Die Stellung ist ausgeglichen.} b5 {[%emt 0:00:18]} 12. Ne3 {[%emt 0:00:39]} Bb7 {[%emt 0:01:41]} 13. Bf3 {[%emt 0:00:09]} c6 {[%emt 0:00:27]} 14. Bd6 {[%emt 0:01:58]} Qb6 {[%emt 0:00:09]} 15. a4 {[%emt 0:00:01]} Rad8 {[%emt 0:00:18] Und jetzt ...Nb8 wäre schön.} 16. a5 {[%emt 0:00:02]} Qa7 {[%emt 0:00:24] [#] ...Nf8 ist eine echte Drohung.} (16... Qd4 {sieht schärfer aus.} 17. Na2 Nxe4 18. Bxe4 Nf6) 17. Bc7 {[%emt 0:00:24]} Rc8 {[%emt 0:00:07]} 18. Bd6 {[%emt 0:00:02]} c5 {[%emt 0:01:48]} 19. Qe2 $2 {[%emt 0:01:25][%mdl 8192] Davon erholt Weiß sich nicht mehr.} (19. Ncd5 $15 Bxd5 20. exd5 (20. Nxd5 $2 {verliert.} Nxd5 21. exd5 Nf6 $19)) 19... Rc6 $19 {[%emt 0:00:44]} 20. Rad1 {[%emt 0:01:10][%cal Oc3d5]} Re6 {[%emt 0:00:03]} 21. Nf5 $2 {[%emt 0:00:06]} (21. Bxc5 Rxc5 22. Qe1) 21... gxf5 {[%emt 0:00:12] Schwarz steht klar auf Gewinn.} 22. exf5 {[%emt 0:00:01]} Rexd6 {[%emt 0:00:15]} 23. Bxc6 {[%emt 0:00:02]} Rxd1 {[%emt 0:00:18]} 24. Rxd1 {[%emt 0:00:01]} Bxc6 {[%emt 0:00:02]} 25. g4 {[%emt 0:01:04]} Qb7 {[%emt 0:00:10]} 26. Rd3 {[%emt 0:00:22]} e4 {[%emt 0:00:18]} 27. Rg3 {[%emt 0:00:04]} Ne5 {[%emt 0:00:11]} 28. g5 {[%emt 0:00:02]} Nf3+ {[%emt 0:00:08]} 29. Kh1 {[%emt 0:00:02] [#]} e3 $1 {[%emt 0:00:51]} 30. Qxe3 {[%emt 0:00:08]} Nd4+ {[%emt 0:00:42]} 31. Kg1 {[%emt 0:00:03]} Nxf5 {[%emt 0:00:03]} 32. Qf4 {[%emt 0:00:19]} Nxg3 {[%emt 0:00:09]} 33. gxf6 {[%emt 0:00:03]} Nh5 {[%emt 0:00:09][%csl LRf4,LRf6] Gewichteter Fehlerwert: Weiß=0.96/Schwarz=0.15 (sehr präzise) .  Verlustzug:     	Weiß=1     	---        Fehler:       	Weiß=2     	---        Ungenau:       	Weiß=4     	Schwarz=2     OK:         	Weiß=5     	Schwarz=9     Bester:       	---       	Schwarz=3} 0-1

[Event "Grand Prix Romania 1st Stage 2024"]
[Site "Bucuresti"]
[Date "2024.03.24"]
[Round "5.8"]
[White "Kozak, Adam"]
[Black "Banzea, Alexandru-Bogdan"]
[Result "1-0"]
[ECO "A49"]
[WhiteElo "2607"]
[BlackElo "2394"]
[Annotator "RC"]
[PlyCount "71"]
[EventDate "2024.03.20"]
[EventType "swiss"]
[EventCountry "ROU"]
[SourceTitle "playchess.com"]
[Source "ChessBase"]
[SourceQuality "1"]
[TimeControl "900+5"]

1. Nf3 {[%emt 0:00:05]} Nf6 {[%emt 0:00:03]} 2. g3 {[%emt 0:00:00]} g6 {[%emt 0:00:04]} 3. b3 {[%emt 0:00:00]} Bg7 {[%emt 0:00:05]} 4. Bb2 {[%emt 0:00:02]} d6 {[%emt 0:00:06]} 5. d4 {[%emt 0:00:03]} O-O {[%emt 0:00:03]} 6. Bg2 {[%emt 0:00:01]} Nbd7 {[%emt 0:00:03]} 7. O-O {[%emt 0:00:09]} c6 {[%emt 0:00:05]} 8. Nbd2 {[%emt 0:00:23]} Re8 {[%emt 0:00:05]} 9. e4 {[%emt 0:01:54]} e5 {[%emt 0:00:03]} 10. dxe5 {[%emt 0:00:04]} dxe5 {[%emt 0:00:04]} 11. Qe2 {[%emt 0:00:10]} b5 {[%emt 0:00:10]} 12. a4 {[%emt 0:00:06]} a5 {[%emt 0:00:06]} 13. Rfd1 {[%emt 0:00:54]} Qb6 {[%emt 0:00:45]} 14. h3 {[%emt 0:02:51]} Bf8 {[%emt 0:00:31]} 15. Ne1 {[%emt 0:02:11]} Ba6 {[%emt 0:00:56]} 16. Qf3 {[%emt 0:00:14]} Rad8 {[%emt 0:02:00]} 17. Nd3 {[%emt 0:00:08]} Kg7 {[%emt 0:00:45]} 18. Bc3 {[%emt 0:01:44]} b4 {[%emt 0:03:26]} 19. Bb2 {[%emt 0:00:01]} Qc7 {[%emt 0:00:28]} 20. Qe3 {[%emt 0:03:14]} c5 {[%emt 0:00:32]} 21. c4 {[%emt 0:00:04]} bxc3 {[%emt 0:02:22]} 22. Bxc3 {[%emt 0:00:02]} c4 {[%emt 0:01:37]} 23. Nxc4 {[%emt 0:01:03]} Bxc4 {[%emt 0:00:03]} 24. bxc4 {[%emt 0:00:02]} Qxc4 {[%emt 0:00:04]} 25. Bxa5 {[%emt 0:00:03]} Ra8 {[%emt 0:00:03]} 26. Nb2 {[%emt 0:01:07]} Qc2 {[%emt 0:01:35]} 27. Qd2 {[%emt 0:00:33]} Qxd2 {[%emt 0:00:21]} 28. Bxd2 {[%emt 0:00:02]} Nc5 {[%emt 0:00:10]} 29. Be3 {[%emt 0:00:12]} Reb8 {[%emt 0:00:13]} 30. Nc4 {[%emt 0:00:01]} Rxa4 {[%emt 0:00:12]} 31. Rxa4 {[%emt 0:00:00]} Nxa4 {[%emt 0:00:02]} 32. Nxe5 {[%emt 0:00:07]} Nc3 {[%emt 0:00:02]} 33. Re1 {[%emt 0:00:01]} Ncxe4 {[%emt 0:00:16]} 34. Bd4 {[%emt 0:00:05]} Rd8 {[%emt 0:00:21]} 35. Nc6 {[%emt 0:00:16]} Re8 {[%emt 0:00:11]} 36. Rxe4 {[%emt 0:00:03]} 1-0

[Event "Grand Prix Romania 1st Stage 2024"]
[Site "Bucuresti"]
[Date "2024.03.24"]
[Round "5.9"]
[White "Secheres, Adrian-Simion"]
[Black "Gavrilescu, David"]
[Result "1-0"]
[ECO "D38"]
[WhiteElo "2371"]
[BlackElo "2524"]
[Annotator "TA"]
[PlyCount "65"]
[EventDate "2024.03.20"]
[EventType "swiss"]
[EventCountry "ROU"]
[SourceTitle "playchess.com"]
[Source "ChessBase"]
[SourceQuality "1"]
[TimeControl "900+5"]

{[%evp 11,65,0,-14,0,0,-4,-8,0,28,0,7,10,10,3,1,0,26,29,17,11,10,8,85,33,43,34,28,34,37,28,55,21,29,26,29,14,59,56,64,62,95,56,60,35,104,101,102,98,107,93,115,70,91,55,264,246]} 1. d4 {[%emt 0:00:03]} Nf6 {[%emt 0:00:06]} 2. c4 {[%emt 0:00:08]} e6 {[%emt 0:00:02]} 3. Nf3 {[%emt 0:00:11]} d5 {[%emt 0:00:03]} 4. Nc3 {[%emt 0:00:04]} Bb4 {[%emt 0:00:05]} 5. a3 {[%emt 0:00:15]} Bxc3+ {[%emt 0:00:06]} 6. bxc3 {[%emt 0:00:02]} c5 {[%emt 0:00:07]} 7. a4 {[%emt 0:00:03]} Qa5 {[%emt 0:00:20]} 8. e3 {[%emt 0:00:32]} O-O {[%emt 0:00:03]} 9. Qc2 {[%emt 0:00:52] The position is equal.} Nc6 {[%emt 0:00:27]} 10. dxc5 {[%emt 0:00:49]} dxc4 {[%emt 0:00:45]} (10... Qxc5 $2 {loses.} 11. Ba3 Qb6 12. cxd5 exd5 13. Bxf8 Kxf8 14. Bd3 $18) 11. Bxc4 {[%emt 0:00:45]} Qxc5 {[%emt 0:00:23]} 12. Be2 {[%emt 0:01:42]} Rd8 {[%emt 0:01:12]} 13. Ba3 {[%emt 0:00:11] Prevents Nb4} Qa5 {[%emt 0:00:05]} 14. O-O {[%emt 0:00:12]} e5 {[%emt 0:00:37][%cal Be6e5,Be5e4][%mdl 32]} 15. Rab1 {[%emt 0:00:19]} Qc7 {[%emt 0:00:40]} 16. Qb2 {[%emt 0:03:16]} Bg4 {[%emt 0:02:33]} (16... Na5 $11) 17. h3 {[%emt 0:00:56]} (17. Qxb7 $16 Qxb7 18. Rxb7) 17... Bxf3 $14 {[%emt 0:00:19]} 18. Bxf3 {[%emt 0:00:37] A strong pair of Bishops.} e4 {[%emt 0:02:13]} 19. Be2 {[%emt 0:00:01]} (19. Qxb7 $2 {perishes.} Qxb7 20. Rxb7 exf3 21. gxf3 Nd5 $19) 19... b6 {[%emt 0:00:01]} 20. Rfd1 {[%emt 0:00:01]} h6 {[%emt 0:00:14]} 21. Bb5 {[%emt 0:00:25]} Rac8 {[%emt 0:00:48]} 22. Qe2 {[%emt 0:01:10]} Ne5 {[%emt 0:00:55]} 23. Bb2 {[%emt 0:00:43]} Ne8 {[%emt 0:02:08][%cal Bf6e8,Be8d6,Bd6b7,Bb7c5][%mdl 32]} 24. Rd4 {[%emt 0:00:19]} Nd6 {[%emt 0:00:02]} 25. Ba6 {[%emt 0:00:28]} Rb8 {[%emt 0:00:08]} 26. Rbd1 {[%emt 0:00:39]} Nc6 $1 {[%emt 0:00:02]} 27. Rd5 {[%emt 0:00:08] aiming for Qg4.} Ne7 {[%emt 0:00:07] [#]} (27... Ne8 $1 $14) 28. R5d2 $1 $16 {[%emt 0:00:07] Qg4 is the strong threat. White is more active.} Nb7 {[%emt 0:00:30]} 29. Ba3 {[%emt 0:01:05] Threatens to win with Rxd8+.} Rxd2 {[%emt 0:00:35]} 30. Rxd2 {[%emt 0:00:08]} Nc5 {[%emt 0:00:03]} 31. Bb5 {[%emt 0:00:21]} Rd8 {[%emt 0:01:10]} 32. Rd4 {[%emt 0:00:30]} Rxd4 $2 {[%emt 0:00:48] [#]} (32... Nf5 $14) 33. exd4 {[%emt 0:00:08] Weighted Error Value: White=0.13 (very precise) /Black=0.25 (precise) .  Loses game:     	---       	Black=1      Mistake:       	White=1     	Black=2      Inaccurate:     	White=5     	Black=5      OK:         	White=9     	Black=12     Best:        	White=1     	Black=1      Strong:       	White=1     	Black=1} 1-0

[Event "Grand Prix Romania 1st Stage 2024"]
[Site "Bucuresti"]
[Date "2024.03.24"]
[Round "5.10"]
[White "Ghimpu, Samuel-Timotei"]
[Black "Istratescu, Andrei"]
[Result "0-1"]
[ECO "A37"]
[WhiteElo "2467"]
[BlackElo "2374"]
[Annotator "TA"]
[PlyCount "40"]
[EventDate "2024.03.20"]
[EventType "swiss"]
[EventCountry "ROU"]
[SourceTitle "playchess.com"]
[Source "ChessBase"]
[SourceQuality "1"]
[TimeControl "900+5"]

{[%evp 11,40,0,0,-11,7,-59,-70,-83,-77,-67,-100,-97,-8,-15,-20,-20,-10,-23,-13,-35,-37,-33,-29,-26,-16,-146,-155,-406,-400,-389,-389]} 1. c4 {[%emt 0:00:37]} c5 {[%emt 0:00:37]} 2. g3 {[%emt 0:00:06]} Nc6 {[%emt 0:00:06]} 3. Bg2 {[%emt 0:00:04]} g6 {[%emt 0:00:02]} 4. Nc3 {[%emt 0:00:11]} Bg7 {[%emt 0:00:01]} 5. a3 {[%emt 0:00:40]} e6 {[%emt 0:02:09]} 6. Nf3 {[%emt 0:00:21]} Nge7 {[%emt 0:00:03]} 7. h4 {[%emt 0:00:07]} h6 {[%emt 0:00:36] [#]} 8. d4 {[%emt 0:03:46]} Nxd4 $15 {[%emt 0:01:07]} ({Bitte nicht} 8... Bxd4 $6 9. Nxd4 cxd4 10. Nb5 $16) 9. Nxd4 {[%emt 0:00:06] Schwarz steht etwas besser.} cxd4 {[%emt 0:00:03]} 10. Nb5 {[%emt 0:00:05][%cal Oc1f4]} d5 {[%emt 0:00:03]} 11. Nxd4 {[%emt 0:03:36]} O-O {[%emt 0:01:49]} (11... dxc4 $17 12. Qa4+ Bd7 13. Qxc4 Rc8) 12. cxd5 $11 {[%emt 0:00:09]} Nxd5 {[%emt 0:00:04]} 13. O-O {[%emt 0:00:11]} Qb6 {[%emt 0:00:21]} 14. e4 {[%emt 0:02:26]} Ne7 {[%emt 0:01:54]} 15. Nb3 {[%emt 0:01:49]} Rd8 {[%emt 0:01:25]} 16. Qc2 {[%emt 0:00:01]} Qc6 {[%emt 0:00:04]} 17. Qe2 {[%emt 0:01:23]} b6 {[%emt 0:00:10] ...Qa4 wäre nun fies.} 18. Be3 {[%emt 0:00:39]} (18. e5 $11 Nd5 19. Nd4) 18... Qa4 $17 {[%emt 0:00:15]} 19. Qc2 $2 {[%emt 0:00:10]} (19. Nd2 $17) 19... Ba6 $19 {[%emt 0:00:12]} 20. Rfd1 {[%emt 0:00:09] [#]} Rdc8 $1 {[%emt 0:00:07] Gewichteter Fehlerwert: Weiß=0.38/Schwarz=0.14 (sehr präzise) .  Verlustzug:     	Weiß=1     	---        Fehler:       	Weiß=2     	Schwarz=1     OK:         	Weiß=4     	Schwarz=4     Bester:       	Weiß=2     	Schwarz=3     Stark:        	---       	Schwarz=1} 0-1